bitfinex/quotes_BTCUSD_20240611
["timestamp","ask_amount","ask_price","bid_price","bid_amount"]
[1718147787192,0.0716,67439.0,67438.0,0.12]
[1718147788293,0.219882,67439.0,67438.0,0.12]
[1718147788513,0.219882,67439.0,67438.0,0.143]
[1718147788694,0.219882,67439.0,67438.0,0.16293513]
[1718147788950,0.219882,67439.0,67438.0,0.14293513]
[1718147788951,0.222882,67439.0,67438.0,0.14293513]
[1718147789932,0.26440208,67439.0,67438.0,0.14293513]
[1718147790954,0.26440208,67439.0,67431.0,0.04419554]
[1718147790955,0.2,67432.0,67431.0,0.04419554]
[1718147791293,0.2,67432.0,67429.0,0.009427]
[1718147791294,0.444904,67430.0,67429.0,0.009427]
[1718147791731,0.544904,67430.0,67429.0,0.009427]
[1718147791935,0.66795105,67430.0,67429.0,0.009427]
[1718147792960,0.80415815,67430.0,67429.0,0.009427]
[1718147793390,0.6811111,67430.0,67429.0,0.009427]
[1718147794070,0.7527111,67430.0,67429.0,0.009427]
[1718147794291,0.7667111,67430.0,67429.0,0.009427]
[1718147794509,0.7807111,67430.0,67429.0,0.009427]
[1718147798433,0.79847396,67430.0,67429.0,0.009427]
[1718147802090,0.29406386,67430.0,67429.0,0.032427]
[1718147802311,0.29406386,67430.0,67429.0,0.34335931]
[1718147803191,0.28006386,67430.0,67429.0,0.34335931]
[1718147803398,0.26606386,67430.0,67429.0,0.34335931]
[1718147803614,0.26606386,67430.0,67429.0,0.327227]
[1718147803615,0.27806386,67430.0,67429.0,0.327227]
[1718147803834,0.28806386,67430.0,67429.0,0.327227]
[1718147804042,0.28806386,67430.0,67429.0,0.34341267]
[1718147805924,0.28806386,67430.0,67429.0,0.32341267]
[1718147806305,0.28806386,67430.0,67429.0,0.34341267]
[1718147809074,0.28806386,67430.0,67429.0,0.32341267]
[1718147809768,0.28806386,67430.0,67429.0,0.34341267]
[1718147811941,0.35966386,67430.0,67429.0,0.34341267]
[1718147813868,0.28806386,67430.0,67429.0,0.34341267]
[1718147814090,0.496564,67439.0,67429.0,0.35753256]
[1718147814355,0.0177997,67449.0,67429.0,0.35753256]
[1718147814356,0.0177997,67457.0,67456.0,0.02]
[1718147814628,0.01832128,67460.0,67459.0,0.07215996]
[1718147814848,0.23815828,67460.0,67457.0,0.12]
[1718147815075,0.23815828,67460.0,67459.0,0.01771671]
[1718147815076,0.149097,67460.0,67459.0,0.01771671]
[1718147815291,0.00086,67460.0,67459.0,0.023]
[1718147815492,0.07246,67460.0,67459.0,0.04071491]
[1718147816374,0.00086,67460.0,67459.0,0.04071491]
[1718147817029,0.00086,67460.0,67459.0,0.06071491]
[1718147817684,0.00986,67460.0,67459.0,0.06171491]
[1718147817916,0.01786,67460.0,67459.0,0.06271491]
[1718147818126,0.00986,67460.0,67459.0,0.06171491]
[1718147818564,0.01586,67460.0,67459.0,0.06271491]
[1718147818775,0.01586,67460.0,67459.0,0.06171491]
[1718147819442,0.01586,67460.0,67459.0,0.06071491]
[1718147819443,0.00686,67460.0,67459.0,0.06071491]
[1718147819863,0.00986,67460.0,67459.0,0.06071491]
[1718147823824,0.00986,67460.0,67459.0,0.04071491]
[1718147824265,0.00986,67460.0,67459.0,0.06071491]
[1718147828689,0.0279993,67460.0,67459.0,0.06071491]
[1718147830438,0.0279993,67460.0,67459.0,0.04071491]
[1718147830648,0.0279993,67460.0,67459.0,0.06071491]
[1718147837763,0.0249993,67460.0,67459.0,0.06071491]
[1718147837934,0.0189993,67460.0,67459.0,0.06071491]
[1718147838157,0.0259993,67460.0,67459.0,0.06171491]
[1718147838952,0.0299993,67460.0,67459.0,0.06171491]
[1718147839414,0.0299993,67460.0,67459.0,0.04171491]
[1718147839887,0.0299993,67460.0,67459.0,0.06171491]
[1718147840116,0.0299993,67460.0,67459.0,0.04171491]
[1718147840286,0.0299993,67460.0,67459.0,0.06171491]
[1718147840690,0.0299993,67460.0,67459.0,0.04171491]
[1718147840840,0.0299993,67460.0,67459.0,0.06171491]
[1718147841485,0.0299993,67460.0,67459.0,0.04171491]
[1718147841657,0.0299993,67460.0,67459.0,0.06171491]
[1718147847857,0.0299993,67460.0,67459.0,0.07171491]
[1718147848083,0.0299993,67460.0,67459.0,0.06171491]
[1718147850448,0.0299993,67460.0,67459.0,0.19050509]
[1718147850647,0.01186,67460.0,67459.0,0.63986587]
[1718147851055,0.01186,67460.0,67459.0,1.03423713]
[1718147851288,0.01186,67460.0,67459.0,0.96819681]
[1718147851806,0.00486,67460.0,67459.0,0.95719681]
[1718147852017,0.00086,67460.0,67459.0,1.0332812]
[1718147852263,0.00086,67460.0,67459.0,0.56016587]
[1718147852725,0.00086,67460.0,67459.0,0.57016587]
[1718147852983,0.00086,67460.0,67459.0,0.63626408]
[1718147853411,0.00086,67460.0,67459.0,0.9646029]
[1718147854481,0.00086,67460.0,67459.0,0.89850469]
[1718147855511,0.00086,67460.0,67459.0,0.98663563]
[1718147856369,0.00086,67460.0,67459.0,0.89850469]
[1718147856581,0.1,67469.0,67468.0,0.02]
[1718147856820,0.1,67469.0,67468.0,0.043]
[1718147857212,0.1,67469.0,67468.0,0.06264342]
[1718147857918,0.121,67469.0,67468.0,0.06464342]
[1718147859476,0.13874813,67469.0,67468.0,0.06464342]
[1718147859928,0.13874813,67469.0,67468.0,0.45915797]
[1718147860323,0.13874813,67469.0,67468.0,0.48144275]
[1718147861115,0.13960813,67469.0,67468.0,0.48144275]
[1718147861316,0.13960813,67469.0,67468.0,0.46144275]
[1718147861565,0.13960813,67469.0,67468.0,0.45932438]
[1718147861875,0.13960813,67469.0,67468.0,0.13099374]
[1718147862459,0.13960813,67469.0,67468.0,0.39298518]
[1718147862867,0.13960813,67469.0,67468.0,0.06464342]
[1718147863102,0.13960813,67469.0,67468.0,0.48144486]
[1718147863471,0.13960813,67469.0,67468.0,0.37297809]
[1718147864098,0.13960813,67469.0,67468.0,0.39297809]
[1718147864732,0.13960813,67469.0,67468.0,0.39297996]
[1718147866916,0.13960813,67469.0,67468.0,0.48144209]
[1718147867588,0.13960813,67469.0,67468.0,0.39297996]
[1718147871735,0.13960813,67469.0,67468.0,0.39297278]
[1718147873444,0.13960813,67469.0,67468.0,0.45929671]
[1718147873759,0.13960813,67469.0,67468.0,0.13096735]
[1718147874527,0.13960813,67469.0,67468.0,0.06464342]
[1718147876333,0.26256822,67469.0,67468.0,0.06464342]
[1718147876545,0.26256822,67469.0,67468.0,0.08886544]
[1718147877402,0.26256822,67469.0,67468.0,0.04464342]
[1718147877816,0.26256822,67469.0,67468.0,0.10886637]
[1718147878037,0.83776247,67469.0,67468.0,0.06586637]
[1718147878247,0.3165,67467.0,67465.0,0.02]
[1718147878456,0.3165,67467.0,67460.0,0.10014]
[1718147878457,0.148233,67461.0,67460.0,0.10014]
[1718147878666,0.34289309,67461.0,67460.0,0.10014]
[1718147878881,0.42319439,67461.0,67460.0,0.10014]
[1718147879525,0.42319439,67461.0,67460.0,0.12314]
[1718147879726,0.34289309,67461.0,67460.0,0.12314]
[1718147881371,0.35589309,67461.0,67460.0,0.12414]
[1718147882010,0.238933,67461.0,67460.0,0.12414]
[1718147882226,0.36191287,67461.0,67460.0,0.12414]
[1718147883646,0.238933,67461.0,67460.0,0.12414]
[1718147883854,0.43181514,67461.0,67460.0,0.12414]
[1718147885159,0.29020985,67461.0,67460.0,0.12414]
[1718147885406,0.167233,67461.0,67460.0,0.12414]
[1718147885843,0.167233,67461.0,67460.0,0.14705963]
[1718147888270,0.167233,67461.0,67460.0,0.19128984]
[1718147890918,0.167233,67461.0,67460.0,0.14705963]
[1718147891329,0.019,67461.0,67460.0,0.14705963]
[1718147891543,0.019,67461.0,67460.0,0.55188356]
[1718147891760,0.019,67461.0,67460.0,0.88026018]
[1718147891998,0.019,67461.0,67460.0,0.81393625]
[1718147892463,0.019,67461.0,67460.0,0.88658225]
[1718147895101,0.03687853,67461.0,67460.0,0.88658225]
[1718147897010,0.03687853,67461.0,67460.0,0.81488225]
[1718147898656,0.019,67461.0,67460.0,0.81488225]
[1718147899384,0.01,67461.0,67460.0,0.81388225]
[1718147899650,0.012,67461.0,67460.0,0.81388225]
[1718147899909,0.002,67461.0,67460.0,0.81388225]
[1718147900144,0.01750952,67462.0,67461.0,0.02]
[1718147900429,0.148218,67468.0,67461.0,0.39426739]
[1718147900757,0.148218,67468.0,67467.0,0.06632749]
[1718147900927,0.248218,67468.0,67467.0,0.39470411]
[1718147901141,0.248218,67468.0,67467.0,0.44054842]
[1718147902037,0.252218,67468.0,67467.0,0.44054842]
[1718147903065,0.252218,67468.0,67467.0,0.37422085]
[1718147903316,0.259218,67468.0,67467.0,0.37422085]
[1718147904395,0.259218,67468.0,67467.0,0.3742126]
[1718147904836,0.2769188,67468.0,67467.0,0.3742126]
[1718147907149,0.42106668,67468.0,67467.0,0.3742126]
[1718147907618,0.42106668,67468.0,67467.0,0.11219983]
[1718147908105,0.42106668,67468.0,67467.0,0.44053097]
[1718147908563,0.52906968,67468.0,67467.0,0.04588763]
[1718147908794,0.52906968,67468.0,67467.0,0.09009839]
[1718147908795,0.63256968,67468.0,67467.0,0.09009839]
[1718147909009,0.75553134,67468.0,67467.0,0.04588763]
[1718147910108,0.75553134,67468.0,67467.0,0.02288763]
[1718147910109,1.41628727,67468.0,67467.0,0.02288763]
[1718147910346,0.148233,67461.0,67460.0,0.001086]
[1718147910569,0.61405293,67461.0,67460.0,0.001086]
[1718147910790,0.837028,67461.0,67460.0,0.001086]
[1718147911226,0.9595466,67461.0,67460.0,0.001086]
[1718147911452,0.95955985,67461.0,67460.0,0.001086]
[1718147911872,0.96655985,67461.0,67460.0,0.001086]
[1718147913159,0.95955985,67461.0,67460.0,0.001086]
[1718147913375,0.98555985,67461.0,67460.0,0.001086]
[1718147914252,0.97355985,67461.0,67460.0,0.001086]
[1718147914464,0.98555985,67461.0,67460.0,0.001086]
[1718147914716,0.97155985,67461.0,67460.0,0.001086]
[1718147914979,0.98555985,67461.0,67460.0,0.001086]
[1718147915201,1.68555985,67461.0,67460.0,0.001086]
[1718147915420,1.67355985,67461.0,67460.0,0.001086]
[1718147915631,1.65955985,67461.0,67460.0,0.001086]
[1718147915838,1.67355985,67461.0,67460.0,0.001086]
[1718147916474,1.65955985,67461.0,67460.0,0.001086]
[1718147916681,1.68655985,67461.0,67460.0,0.001086]
[1718147917109,1.67355985,67461.0,67460.0,0.001086]
[1718147917281,1.68755985,67461.0,67460.0,0.001086]
[1718147923413,1.56457153,67461.0,67460.0,0.001086]
[1718147923851,1.68755475,67461.0,67460.0,0.001086]
[1718147924295,1.65384721,67461.0,67460.0,0.001086]
[1718147924505,1.77683063,67461.0,67460.0,0.001086]
[1718147925812,1.65384721,67461.0,67460.0,0.001086]
[1718147929001,1.77683077,67461.0,67460.0,0.001086]
[1718147929460,1.70513077,67461.0,67460.0,0.001086]
[1718147929676,1.77683077,67461.0,67460.0,0.001086]
[1718147932600,1.77683195,67461.0,67460.0,0.001086]
[1718147935971,1.77682975,67461.0,67460.0,0.001086]
[1718147936792,1.77682974,67461.0,67460.0,0.001086]
[1718147944359,1.77683016,67461.0,67460.0,0.001086]
[1718147944984,0.97911156,67461.0,67460.0,0.001086]
[1718147945221,0.97911156,67461.0,67460.0,0.024086]
[1718147945222,0.41679163,67461.0,67460.0,0.024086]
[1718147945439,0.41679163,67461.0,67460.0,0.350886]
[1718147945652,0.41679163,67461.0,67460.0,0.3706192]
[1718147945864,0.29380868,67461.0,67460.0,0.3706192]
[1718147946552,0.29380868,67461.0,67460.0,0.1514192]
[1718147946553,0.13157568,67461.0,67460.0,0.1514192]
[1718147946776,0.01757568,67461.0,67460.0,0.4839192]
[1718147947002,0.03057568,67461.0,67460.0,0.4839192]
[1718147947209,0.021,67461.0,67460.0,0.81226694]
[1718147947428,0.148226,67465.0,67464.0,0.304]
[1718147947633,0.248226,67465.0,67464.0,0.437]
[1718147947879,0.248226,67465.0,67464.0,0.44670676]
[1718147948097,0.1,67465.0,67464.0,0.44670676]
[1718147948547,0.1,67465.0,67464.0,0.51301191]
[1718147948764,0.00086,67468.0,67466.0,0.1]
[1718147948993,0.00086,67468.0,67467.0,0.327]
[1718147948994,0.10086,67468.0,67467.0,0.327]
[1718147949217,0.10086,67468.0,67467.0,0.34670519]
[1718147949218,0.1136224,67468.0,67467.0,0.34670519]
[1718147949433,0.29527974,67468.0,67467.0,0.04270519]
[1718147949658,0.2618404,67468.0,67467.0,0.04270519]
[1718147950538,0.72694333,67468.0,67467.0,0.01970519]
[1718147950757,1.27564155,67468.0,67467.0,0.01970519]
[1718147950981,0.148233,67461.0,67460.0,0.001086]
[1718147951202,0.57325115,67461.0,67460.0,0.001086]
[1718147951417,0.57325115,67461.0,67460.0,0.02079485]
[1718147951849,0.57325115,67461.0,67460.0,0.001086]
[1718147952073,0.86607627,67461.0,67460.0,0.001086]
[1718147952294,0.97027627,67461.0,67460.0,0.001086]
[1718147952974,0.99027627,67461.0,67460.0,0.001086]
[1718147953418,0.88927805,67461.0,67460.0,0.001086]
[1718147953657,1.0242701,67461.0,67460.0,0.001086]
[1718147953883,1.0162701,67461.0,67460.0,0.001086]
[1718147954350,1.0302701,67461.0,67460.0,0.001086]
[1718147954805,1.0432701,67461.0,67460.0,0.001086]
[1718147956387,1.9397371,67461.0,67460.0,1e-08]
[1718147956599,0.1042,67452.0,67449.0,0.04426459]
[1718147956826,0.2,67453.0,67448.0,0.04521059]
[1718147956827,0.14826,67449.0,67448.0,0.04521059]
[1718147957048,1.15180962,67449.0,67448.0,0.000946]
[1718147957266,1.39612955,67449.0,67448.0,0.000946]
[1718147957479,1.39612955,67449.0,67434.0,0.04428644]
[1718147957480,0.14829,67435.0,67434.0,0.04428644]
[1718147957703,0.14829,67435.0,67432.0,0.14428644]
[1718147957704,0.148295,67433.0,67432.0,0.14428644]
[1718147957913,0.29261493,67433.0,67432.0,0.14428644]
[1718147958150,0.41564231,67433.0,67432.0,0.1]
[1718147958366,0.49297166,67433.0,67432.0,0.1]
[1718147959232,0.36994005,67433.0,67432.0,0.1]
[1718147959476,0.148301,67430.0,67429.0,0.109427]
[1718147959688,0.220001,67430.0,67429.0,0.109427]
[1718147959901,0.220001,67430.0,67429.0,0.132427]
[1718147960547,0.420001,67430.0,67429.0,0.132427]
[1718147960788,0.47556561,67430.0,67429.0,0.132427]
[1718147960986,0.60660518,67430.0,67429.0,0.132427]
[1718147961371,0.61760518,67430.0,67429.0,0.132427]
[1718147961759,0.61760518,67430.0,67429.0,0.032427]
[1718147962399,0.61760518,67430.0,67429.0,0.132427]
[1718147962668,0.49456561,67430.0,67429.0,0.132427]
[1718147967494,0.439001,67430.0,67429.0,0.132427]
[1718147967730,0.239001,67430.0,67429.0,0.132427]
[1718147972098,0.239001,67430.0,67429.0,0.149121]
[1718147973649,0.167301,67430.0,67429.0,0.149121]
[1718147973870,0.38332093,67430.0,67429.0,0.026121]
[1718147974105,0.51005103,67430.0,67429.0,0.026121]
[1718147974311,0.51005103,67430.0,67429.0,0.009427]
[1718147975710,0.51005103,67430.0,67429.0,0.026121]
[1718147976075,0.28521382,67430.0,67429.0,0.049121]
[1718147976232,0.28521382,67430.0,67429.0,0.358521]
[1718147976825,0.28421382,67430.0,67429.0,0.358521]
[1718147984437,0.40724591,67430.0,67429.0,0.358521]
[1718147984920,0.40724591,67430.0,67429.0,0.157221]
[1718147985558,0.40724591,67430.0,67429.0,0.049121]
[1718147987393,0.40810591,67430.0,67429.0,0.049121]
[1718147987795,0.40810591,67430.0,67429.0,0.049507]
[1718147988261,0.4867365,67430.0,67429.0,0.049507]
[1718147989957,0.53436747,67430.0,67429.0,0.049507]
[1718147991397,0.45573688,67430.0,67429.0,0.155507]
[1718147991724,0.40810591,67430.0,67429.0,0.155507]
[1718147994296,0.40811492,67430.0,67429.0,0.155507]
[1718147997569,0.40811492,67430.0,67429.0,0.049507]
[1718148000472,0.96871934,67430.0,67429.0,0.026507]
[1718148000674,0.96871934,67430.0,67429.0,0.009813]
[1718148001513,1.01636798,67430.0,67429.0,0.009813]
[1718148001725,1.0134336,67430.0,67429.0,0.009813]
[1718148002262,0.9657836,67430.0,67429.0,0.009813]
[1718148002682,0.9657836,67430.0,67429.0,0.03054245]
[1718148003241,1.01344791,67430.0,67429.0,0.03054245]
[1718148003694,0.9657836,67430.0,67429.0,0.03054245]
[1718148004277,0.96592433,67430.0,67429.0,0.03054245]
[1718148006109,1.01360727,67430.0,67429.0,0.03054245]
[1718148006335,0.94190735,67430.0,67429.0,0.03054245]
[1718148006531,1.01360735,67430.0,67429.0,0.03054245]
[1718148006733,0.96562586,67430.0,67429.0,0.03054245]
[1718148006936,0.54963984,67430.0,67429.0,0.03054245]
[1718148007521,0.5500381,67430.0,67429.0,0.07491931]
[1718148010485,0.5500381,67430.0,67429.0,0.03054245]
[1718148011189,0.8613381,67430.0,67429.0,0.03054245]
[1718148011433,0.8613381,67430.0,67428.0,0.00295558]
[1718148011434,0.148304,67429.0,67428.0,0.00295558]
[1718148011636,0.54527194,67429.0,67428.0,0.00295558]
[1718148012284,0.37135435,67429.0,67428.0,0.02595558]
[1718148012715,0.37135435,67429.0,67428.0,0.04404115]
[1718148013740,0.37835435,67429.0,67428.0,0.04404115]
[1718148014407,0.52967428,67429.0,67428.0,0.04404115]
[1718148017455,0.38535435,67429.0,67428.0,0.04404115]
[1718148017865,0.38535435,67429.0,67428.0,0.08843527]
[1718148019523,0.39535435,67429.0,67428.0,0.08843527]
[1718148020584,0.39535435,67429.0,67428.0,0.04404115]
[1718148027909,0.71196235,67429.0,67428.0,0.04404115]
[1718148028160,0.84549611,67429.0,67428.0,0.02595558]
[1718148029634,0.98981604,67429.0,67428.0,0.00295558]
[1718148029842,0.96981604,67429.0,67428.0,0.00295558]
[1718148032151,1.28131604,67429.0,67428.0,0.00295558]
[1718148032352,1.30131604,67429.0,67428.0,0.00295558]
[1718148032977,1.59792404,67429.0,67428.0,0.00295558]
[1718148033186,1.9055507,67429.0,67428.0,0.00295558]
[1718148033402,2.0055507,67429.0,67428.0,0.00295558]
[1718148034013,1.9915507,67429.0,67428.0,0.00295558]
[1718148034466,2.0095507,67429.0,67428.0,0.00295558]
[1718148034884,2.0005507,67429.0,67428.0,0.00295558]
[1718148035338,2.0055507,67429.0,67428.0,0.00295558]
[1718148035565,2.0195507,67429.0,67428.0,0.00295558]
[1718148036641,0.148323,67420.0,67419.0,0.009427]
[1718148036844,0.58739328,67420.0,67419.0,0.009427]
[1718148037046,0.58739328,67420.0,67419.0,0.03528851]
[1718148037288,0.58739328,67420.0,67419.0,0.009427]
[1718148037958,0.59739328,67420.0,67419.0,0.03528851]
[1718148038168,0.69013261,67420.0,67419.0,0.03535171]
[1718148040460,1.02637961,67420.0,67419.0,0.03535171]
[1718148040659,0.98677961,67420.0,67419.0,0.03535171]
[1718148040879,0.98677961,67420.0,67419.0,0.009427]
[1718148041238,1.13581861,67420.0,67419.0,0.009427]
[1718148041440,1.12481861,67420.0,67419.0,0.009427]
[1718148041642,1.14481861,67420.0,67419.0,0.009427]
[1718148041850,1.14268861,67420.0,67419.0,0.009427]
[1718148042059,1.12268861,67420.0,67419.0,0.009427]
[1718148042263,1.13268861,67420.0,67419.0,0.009427]
[1718148042442,0.98777961,67420.0,67419.0,0.009427]
[1718148042844,0.93599428,67420.0,67419.0,0.009427]
[1718148043046,0.90604028,67420.0,67419.0,0.009427]
[1718148043270,0.90604028,67420.0,67419.0,0.03535171]
[1718148043517,0.92319998,67420.0,67419.0,0.009427]
[1718148043721,0.93519998,67420.0,67419.0,0.009427]
[1718148044036,0.93519998,67420.0,67419.0,0.03535171]
[1718148044246,0.93519998,67420.0,67419.0,0.009427]
[1718148044452,0.93519998,67420.0,67419.0,0.03535171]
[1718148044627,0.93519998,67420.0,67419.0,0.009427]
[1718148044842,0.93519998,67420.0,67419.0,0.03535171]
[1718148045049,0.93519998,67420.0,67419.0,0.009427]
[1718148045248,0.93519998,67420.0,67419.0,0.03535171]
[1718148045491,0.92566963,67420.0,67419.0,0.009427]
[1718148045710,1.04873264,67420.0,67419.0,0.03535171]
[1718148045878,1.04873264,67420.0,67419.0,0.009427]
[1718148046110,1.04873264,67420.0,67419.0,0.03535171]
[1718148046313,1.04873264,67420.0,67419.0,0.009427]
[1718148046721,1.04873264,67420.0,67419.0,0.03535171]
[1718148046950,1.04873264,67420.0,67419.0,0.009427]
[1718148047512,0.93521264,67420.0,67419.0,0.009427]
[1718148051068,0.86351264,67420.0,67419.0,0.009427]
[1718148051273,0.93521264,67420.0,67419.0,0.009427]
[1718148051702,0.90158873,67420.0,67419.0,0.009427]
[1718148051915,0.90158873,67420.0,67411.0,0.2019]
[1718148051916,0.148341,67412.0,67411.0,0.2019]
[1718148052157,0.44310401,67412.0,67411.0,0.2249]
[1718148052636,0.320041,67412.0,67411.0,0.2249]
[1718148053028,0.320041,67412.0,67411.0,0.123]
[1718148053631,0.3730751,67412.0,67411.0,0.123]
[1718148054219,0.3800751,67412.0,67411.0,0.123]
[1718148054479,0.3800751,67412.0,67408.0,0.009427]
[1718148054480,0.148348,67409.0,67408.0,0.009427]
[1718148054726,0.248348,67409.0,67408.0,0.009427]
[1718148054943,0.43438208,67409.0,67408.0,0.032427]
[1718148055163,0.50060228,67409.0,67408.0,0.032427]
[1718148055378,0.64492221,67409.0,67408.0,0.009427]
[1718148056035,0.6441904,67409.0,67408.0,0.009427]
[1718148056449,0.6471904,67409.0,67408.0,0.009427]
[1718148056662,0.5122702,67409.0,67408.0,0.009427]
[1718148056865,0.5839702,67409.0,67408.0,0.009427]
[1718148057047,0.5809702,67409.0,67408.0,0.009427]
[1718148057299,0.5849702,67409.0,67408.0,0.009427]
[1718148058555,0.5132702,67409.0,67408.0,0.009427]
[1718148058767,0.5849702,67409.0,67408.0,0.009427]
[1718148058975,0.5849702,67409.0,67408.0,0.03693142]
[1718148062242,0.47136793,67409.0,67408.0,0.03693142]
[1718148062468,0.58596706,67409.0,67408.0,0.03693142]
[1718148067154,0.255348,67409.0,67408.0,0.05993142]
[1718148067378,0.255348,67409.0,67408.0,0.37983142]
[1718148067589,0.107,67409.0,67408.0,0.39983142]
[1718148068255,0.007,67409.0,67408.0,0.49983142]
[1718148068476,0.007,67409.0,67408.0,0.47983142]
[1718148068683,0.007,67409.0,67408.0,0.52414108]
[1718148069378,0.03435093,67409.0,67408.0,0.52414108]
[1718148069598,0.18269893,67409.0,67408.0,0.47983142]
[1718148069812,0.18269893,67409.0,67408.0,0.13693142]
[1718148071095,0.18269893,67409.0,67408.0,0.15993142]
[1718148072382,0.18269893,67409.0,67408.0,0.05993142]
[1718148072605,0.38639893,67409.0,67408.0,0.05993142]
[1718148073506,0.148365,67401.0,67400.0,0.009427]
[1718148073721,0.66048493,67401.0,67400.0,0.009427]
[1718148073936,0.87885293,67401.0,67400.0,0.009427]
[1718148075654,0.87885293,67401.0,67397.0,0.009427]
[1718148075655,0.148372,67398.0,67397.0,0.009427]
[1718148075872,0.320072,67398.0,67397.0,0.032427]
[1718148076116,0.41517849,67398.0,67397.0,0.032427]
[1718148077188,0.55949842,67398.0,67397.0,0.009427]
[1718148077419,0.55949842,67398.0,67392.0,0.009427]
[1718148077420,0.148383,67393.0,67392.0,0.009427]
[1718148077628,0.53152286,67393.0,67392.0,0.009427]
[1718148077837,0.63152286,67393.0,67392.0,0.009427]
[1718148078045,0.75123739,67393.0,67392.0,0.009427]
[1718148078262,0.63152286,67393.0,67392.0,0.009427]
[1718148078871,0.65252286,67393.0,67392.0,0.009427]
[1718148079316,0.64052286,67393.0,67392.0,0.009427]
[1718148079530,0.70426968,67393.0,67392.0,0.009427]
[1718148079986,0.63172286,67393.0,67392.0,0.009427]
[1718148080816,0.63172286,67393.0,67382.0,0.009427]
[1718148080817,0.148405,67383.0,67382.0,0.009427]
[1718148081016,0.29272493,67383.0,67382.0,0.009427]
[1718148081556,0.39272493,67383.0,67382.0,0.009427]
[1718148082591,0.39972493,67383.0,67382.0,0.009427]
[1718148082843,0.40572493,67383.0,67382.0,0.009427]
[1718148083065,0.76940155,67383.0,67382.0,0.009427]
[1718148083693,0.54429155,67383.0,67382.0,0.009427]
[1718148088853,0.54429155,67383.0,67382.0,0.009427]
[1718148092810,0.84110155,67383.0,67382.0,0.009427]
[1718148093236,0.148425,67374.0,67373.0,0.1]
[1718148093452,0.320125,67374.0,67373.0,0.123]
[1718148093673,0.3521375,67374.0,67373.0,0.123]
[1718148094524,0.3531375,67374.0,67373.0,0.123]
[1718148094957,0.3541375,67374.0,67373.0,0.123]
[1718148095325,0.322125,67374.0,67373.0,0.123]
[1718148095532,0.46644493,67374.0,67373.0,0.1]
[1718148097213,0.46544493,67374.0,67373.0,0.1]
[1718148097803,0.46544493,67374.0,67372.0,0.1]
[1718148097804,0.148427,67373.0,67372.0,0.1]
[1718148098007,0.19497169,67373.0,67372.0,0.123]
[1718148098423,0.19497169,67373.0,67372.0,0.1]
[1718148098424,0.33929162,67373.0,67372.0,0.1]
[1718148098653,0.19086462,67373.0,67369.0,0.17215996]
[1718148098865,0.19086462,67373.0,67366.0,0.0134003]
[1718148098866,0.14844,67367.0,67366.0,0.0134003]
[1718148099373,0.24844,67367.0,67366.0,0.0134003]
[1718148100712,0.24844,67367.0,67366.0,0.0364003]
[1718148101155,0.24944,67367.0,67366.0,0.0364003]
[1718148101389,0.24844,67367.0,67366.0,0.0364003]
[1718148101799,0.25544,67367.0,67366.0,0.0364003]
[1718148104572,0.25144,67367.0,67366.0,0.0364003]
[1718148104793,0.25344,67367.0,67366.0,0.0364003]
[1718148104996,0.25044,67367.0,67366.0,0.0364003]
[1718148105466,0.25044,67367.0,67366.0,0.2377003]
[1718148105467,0.102,67367.0,67366.0,0.2377003]
[1718148105691,0.005,67367.0,67366.0,0.4271003]
[1718148107057,0.002,67367.0,67366.0,0.4271003]
[1718148107281,0.1,67373.0,67372.0,0.2996]
[1718148107513,0.1,67373.0,67372.0,0.3026]
[1718148107744,0.1,67373.0,67372.0,0.32218458]
[1718148107997,0.148416,67378.0,67374.0,0.02]
[1718148108233,0.148416,67378.0,67377.0,0.1966]
[1718148108723,0.148416,67378.0,67377.0,0.25915504]
[1718148109142,0.248416,67378.0,67377.0,0.23915504]
[1718148109358,0.248416,67378.0,67377.0,0.42215504]
[1718148110389,0.249416,67378.0,67377.0,0.42215504]
[1718148110794,0.248416,67378.0,67377.0,0.42215504]
[1718148111203,0.249416,67378.0,67377.0,0.42215504]
[1718148111610,0.249416,67378.0,67377.0,0.44215504]
[1718148111821,0.249416,67378.0,67377.0,0.42215504]
[1718148112274,0.101,67378.0,67377.0,0.44215504]
[1718148112496,0.101,67378.0,67377.0,0.51385504]
[1718148112497,0.001,67378.0,67377.0,0.51385504]
[1718148113337,0.001,67378.0,67377.0,0.49385504]
[1718148113546,0.001,67378.0,67377.0,0.44215504]
[1718148113751,0.001,67378.0,67377.0,0.4226]
[1718148114268,0.001,67378.0,67377.0,0.44239044]
[1718148118252,0.001,67378.0,67377.0,0.55832775]
[1718148119189,0.001,67378.0,67377.0,0.55843657]
[1718148119400,0.001,67378.0,67377.0,0.58060963]
[1718148119874,0.001,67378.0,67377.0,0.90936149]
[1718148120102,0.001,67378.0,67377.0,0.8428423]
[1718148121379,0.001,67378.0,67377.0,0.93153456]
[1718148121714,0.001,67378.0,67377.0,0.83983456]
[1718148121978,0.001,67378.0,67377.0,0.85983456]
[1718148123023,0.001,67378.0,67377.0,0.83983456]
[1718148123244,0.30721183,67378.0,67377.0,0.56030934]
[1718148123462,0.30721183,67378.0,67377.0,0.14279044]
[1718148123902,0.43034359,67378.0,67377.0,0.14279044]
[1718148124321,0.57775959,67378.0,67377.0,0.14279044]
[1718148125064,0.45462783,67378.0,67377.0,0.14279044]
[1718148125267,0.45562783,67378.0,67377.0,0.14279044]
[1718148125466,0.45522783,67378.0,67377.0,0.14279044]
[1718148125697,0.57735896,67378.0,67377.0,0.14279044]
[1718148126062,0.58235896,67378.0,67377.0,0.14279044]
[1718148126876,0.57735896,67378.0,67377.0,0.14279044]
[1718148127148,0.58335896,67378.0,67377.0,0.14279044]
[1718148127270,0.57835896,67378.0,67377.0,0.14279044]
[1718148127470,0.57235896,67378.0,67377.0,0.14279044]
[1718148127919,0.58435896,67378.0,67377.0,0.14279044]
[1718148128525,0.45622783,67378.0,67377.0,0.14279044]
[1718148128731,0.46422783,67378.0,67377.0,0.14279044]
[1718148129129,0.58735876,67378.0,67377.0,0.14279044]
[1718148129906,0.46422783,67378.0,67377.0,0.04279044]
[1718148130119,0.46422783,67378.0,67377.0,0.14279044]
[1718148130960,0.015,67378.0,67377.0,0.23129044]
[1718148131372,0.015,67378.0,67377.0,0.31787735]
[1718148131570,0.015,67378.0,67377.0,0.25129044]
[1718148131782,0.015,67378.0,67377.0,0.62661801]
[1718148132219,0.015,67378.0,67377.0,0.29785412]